bitfinex/quotes_BTCUSD_20250224
["timestamp","ask_amount","ask_price","bid_price","bid_amount"]
[1740403454622,0.31397719,96121.0,96120.0,0.001]
[1740403455515,0.78296219,96121.0,96120.0,0.001]
[1740403455743,0.15792419,96121.0,96101.0,0.0829]
[1740403455958,0.15792419,96121.0,96102.0,0.10264569]
[1740403456175,0.156074,96108.0,96102.0,0.10264569]
[1740403456390,0.15792419,96121.0,96102.0,0.10264569]
[1740403456600,0.364131,96119.0,96102.0,0.10264569]
[1740403456815,0.156082,96104.0,96102.0,0.10264569]
[1740403457222,0.15,96120.0,96102.0,0.10264569]
[1740403457223,0.00780186,96103.0,96102.0,0.10264569]
[1740403457429,0.156081,96104.0,96102.0,0.10364569]
[1740403457629,0.00780186,96103.0,96102.0,0.10364569]
[1740403458448,0.00780186,96103.0,96102.0,0.10264569]
[1740403458623,0.00780186,96103.0,96102.0,0.10564569]
[1740403458869,0.15,96110.0,96103.0,0.156082]
[1740403459040,0.15,96110.0,96104.0,0.25872569]
[1740403459248,0.00779855,96109.0,96104.0,0.25872569]
[1740403459442,0.00779855,96109.0,96105.0,0.156078]
[1740403459644,0.00779855,96109.0,96104.0,0.10264569]
[1740403459872,0.156072,96110.0,96104.0,0.10264569]
[1740403460190,0.208077,96118.0,96104.0,0.10264569]
[1740403460394,0.15779855,96109.0,96104.0,0.10264569]
[1740403460600,0.15779855,96109.0,96105.0,0.001]
[1740403460804,0.15779855,96109.0,96106.0,0.10264569]
[1740403460805,0.2159303,96108.0,96106.0,0.10264569]
[1740403461007,0.156076,96107.0,96106.0,0.10264569]
[1740403461231,0.16390076,96107.0,96106.0,0.10264569]
[1740403462475,0.16390076,96107.0,96106.0,0.10464569]
[1740403464414,0.16390076,96107.0,96106.0,0.10664569]
[1740403464909,0.40771864,96107.0,96106.0,0.004]
[1740403465131,0.22833117,96107.0,96106.0,0.004]
[1740403465339,1.7017872,96107.0,96106.0,0.004]
[1740403465807,0.156105,96089.0,96087.0,0.0764]
[1740403466237,0.16512056,96089.0,96087.0,0.0764]
[1740403466617,0.16512056,96089.0,96080.0,0.0808]
[1740403467060,0.16512056,96089.0,96088.0,0.0036996]
[1740403467478,0.33058665,96089.0,96088.0,0.0056996]
[1740403467768,0.39816456,96089.0,96088.0,0.0056996]
[1740403467959,0.33058665,96089.0,96088.0,0.0056996]
[1740403469020,0.33058665,96089.0,96088.0,0.0036996]
[1740403469209,0.33058665,96089.0,96088.0,0.0016996]
[1740403469385,0.33058665,96089.0,96088.0,0.0056996]
[1740403469593,0.33058665,96089.0,96088.0,0.0036996]
[1740403469982,0.33058665,96089.0,96088.0,0.0056996]
[1740403480708,0.33058665,96089.0,96088.0,0.0839996]
[1740403481743,0.31038665,96089.0,96088.0,0.0839996]
[1740403483584,0.17448165,96089.0,96088.0,0.2878056]
[1740403483783,0.00901556,96089.0,96088.0,0.39045129]
[1740403483986,0.156088,96100.0,96088.0,0.31215129]
[1740403484185,0.156103,96091.0,96089.0,0.10264569]
[1740403484405,0.156103,96090.0,96089.0,0.10264569]
[1740403484644,0.156105,96089.0,96088.0,0.0888996]
[1740403484846,0.156105,96089.0,96088.0,0.0868996]
[1740403485234,0.157105,96089.0,96088.0,0.0898996]
[1740403485605,0.156105,96089.0,96088.0,0.0908996]
[1740403485809,0.156105,96089.0,96088.0,0.0848996]
[1740403486084,0.156105,96089.0,96088.0,0.0888996]
[1740403490436,0.156105,96089.0,96088.0,0.0056996]
[1740403490661,0.306105,96089.0,96088.0,0.0056996]
[1740403492228,0.15,96090.0,96088.0,0.0056996]
[1740403493149,0.156105,96089.0,96088.0,0.0056996]
[1740403493270,0.1634704,96089.0,96088.0,0.0056996]
[1740403493474,0.1643202,96089.0,96088.0,0.0036996]
[1740403493681,0.1643202,96089.0,96088.0,0.0046996]
[1740403494796,0.1643202,96089.0,96088.0,0.0026996]
[1740403494980,0.1643202,96089.0,96088.0,0.0036996]
[1740403495616,0.1643202,96089.0,96088.0,0.0016996]
[1740403495820,0.1643202,96089.0,96088.0,0.0026996]
[1740403495996,0.1643202,96089.0,96088.0,0.0046996]
[1740403500741,0.3143202,96089.0,96088.0,0.0046996]
[1740403500941,0.1582152,96089.0,96088.0,0.0046996]
[1740403501152,0.3143202,96089.0,96088.0,0.0046996]
[1740403504428,0.1582152,96089.0,96088.0,0.0046996]
[1740403504638,0.3143202,96089.0,96088.0,0.0046996]
[1740403532050,0.0082152,96089.0,96088.0,0.26345129]
[1740403532293,0.1643202,96089.0,96088.0,0.18624529]
[1740403532520,0.0008498,96089.0,96088.0,0.18624529]
[1740403532753,0.16435092,96089.0,96088.0,0.18624529]
[1740403533482,0.00824592,96089.0,96088.0,0.18624529]
[1740403534117,0.00824633,96089.0,96088.0,0.18624529]
[1740403534519,0.00824633,96089.0,96088.0,0.23234529]
[1740403534719,0.00824633,96089.0,96088.0,0.38845129]
[1740403534924,0.0008498,96089.0,96088.0,0.38845129]
[1740403536300,0.0008498,96089.0,96088.0,0.38645129]
[1740403536622,0.0008498,96089.0,96088.0,0.38945129]
[1740403537067,0.0008498,96089.0,96088.0,0.39045129]
[1740403537403,0.0008498,96089.0,96088.0,0.38945129]
[1740403537800,0.0008498,96089.0,96088.0,0.39345129]
[1740403542308,0.0008498,96089.0,96088.0,0.71485129]
[1740403554416,0.0008498,96089.0,96088.0,0.55874529]
[1740403554828,0.1569548,96089.0,96088.0,0.55874529]
[1740403554963,0.1569548,96089.0,96088.0,0.0096996]
[1740403555145,0.16433682,96089.0,96088.0,0.0096996]
[1740403555810,0.16433682,96089.0,96088.0,0.0056996]
[1740403556043,0.16433682,96089.0,96088.0,0.0076996]
[1740403556495,0.16433682,96089.0,96088.0,0.0056996]
[1740403556737,0.16433682,96089.0,96088.0,0.0086996]
[1740403556946,0.16433682,96089.0,96088.0,0.0046996]
[1740403557358,0.16433682,96089.0,96088.0,0.0056996]
[1740403557779,0.16433682,96089.0,96088.0,0.0046996]
[1740403558043,0.16433682,96089.0,96088.0,0.0086996]
[1740403560727,0.16433682,96089.0,96088.0,0.0046996]
[1740403561195,0.16433682,96089.0,96088.0,0.0066996]
[1740403561420,0.16433682,96089.0,96088.0,0.0036996]
[1740403561861,0.16433682,96089.0,96088.0,0.0046996]
[1740403562071,0.16433682,96089.0,96088.0,0.10734529]
[1740403562287,0.16433682,96089.0,96088.0,0.11034529]
[1740403562951,0.00823182,96089.0,96088.0,0.34615129]
[1740403563158,0.00823182,96089.0,96088.0,0.39425129]
[1740403563369,0.0008498,96089.0,96088.0,0.39425129]
[1740403565087,0.0008498,96089.0,96088.0,0.23814529]
[1740403565621,0.0008498,96089.0,96088.0,0.39425129]
[1740403566299,0.0008498,96089.0,96088.0,0.23814529]
[1740403566751,0.0008498,96089.0,96088.0,0.39425129]
[1740403567414,0.0008498,96089.0,96088.0,0.23814529]
[1740403567649,0.0008498,96089.0,96088.0,0.39425129]
[1740403580006,0.0008498,96089.0,96088.0,0.23814529]
[1740403580219,0.1569548,96089.0,96088.0,0.23814529]
[1740403580425,0.1569548,96089.0,96088.0,0.0076996]
[1740403580636,0.16433765,96089.0,96088.0,0.0076996]
[1740403583635,0.00738285,96089.0,96088.0,0.0076996]
[1740403583833,0.16348785,96089.0,96088.0,0.0076996]
[1740403584043,0.156105,96089.0,96088.0,0.0076996]
[1740403584242,0.16350327,96089.0,96088.0,0.0076996]
[1740403585653,0.16350327,96089.0,96088.0,0.11034529]
[1740403586082,0.01573561,96100.0,96088.0,0.18994529]
[1740403586311,0.15,96097.0,96089.0,0.10264569]
[1740403586520,4.303e-05,96100.0,96089.0,0.10264569]
[1740403586731,0.156103,96091.0,96089.0,0.10264569]
[1740403586954,0.1561,96092.0,96089.0,0.10264569]
[1740403587105,0.00739153,96090.0,96089.0,0.10264569]
[1740403587319,0.1561,96092.0,96089.0,0.10264569]
[1740403587514,0.00739153,96090.0,96089.0,0.10264569]
[1740403587717,0.208132,96093.0,96089.0,0.10264569]
[1740403587925,0.00739153,96090.0,96089.0,0.10264569]
[1740403588129,0.156098,96093.0,96089.0,0.10264569]
[1740403588336,0.00739153,96090.0,96089.0,0.10264569]
[1740403588580,0.156098,96093.0,96089.0,0.10464569]
[1740403588787,0.00739153,96090.0,96089.0,0.10464569]
[1740403589022,0.00739572,96090.0,96089.0,0.10464569]
[1740403589444,0.00739572,96090.0,96089.0,0.10264569]
[1740403589656,0.156098,96093.0,96089.0,0.10264569]
[1740403589839,0.00739572,96090.0,96089.0,0.10264569]
[1740403590036,0.156098,96093.0,96089.0,0.10264569]
[1740403590281,0.00607303,96090.0,96089.0,0.25875069]
[1740403590491,0.15,96094.0,96090.0,0.156103]
[1740403590706,0.15,96094.0,96091.0,0.10264569]
[1740403590917,0.156099,96093.0,96091.0,0.10264569]
[1740403591546,0.15,96103.0,96088.0,0.0812996]
[1740403591760,0.156105,96089.0,96088.0,0.0812996]
[1740403592368,0.15,96099.0,96091.0,0.001]
[1740403592590,0.1561,96092.0,96091.0,0.001]
[1740403592814,0.01360641,96100.0,96091.0,0.10364569]
[1740403593029,0.01360641,96100.0,96092.0,0.14964569]
[1740403593241,0.01360641,96100.0,96093.0,0.287931]
[1740403593450,0.156089,96099.0,96094.0,0.25874269]
[1740403593876,0.156089,96099.0,96094.0,0.25874169]
[1740403594095,0.01360641,96100.0,96094.0,0.25874169]
[1740403594096,0.22172241,96100.0,96094.0,0.10264569]
[1740403594307,0.156095,96095.0,96094.0,0.10264569]
[1740403595303,0.208123,96097.0,96094.0,0.10264569]
[1740403595517,0.156093,96096.0,96094.0,0.10264569]
[1740403595755,0.156093,96096.0,96094.0,0.10464569]
[1740403596199,0.156095,96095.0,96094.0,0.10464569]
[1740403596398,0.156095,96095.0,96094.0,0.10364569]
[1740403596969,0.156095,96095.0,96094.0,0.10264569]
[1740403597397,0.156095,96095.0,96094.0,0.10364569]
[1740403597603,0.156095,96095.0,96094.0,0.10264569]
[1740403597809,0.156095,96095.0,96094.0,0.10364569]
[1740403598206,0.1569428,96096.0,96094.0,0.10464569]
[1740403598357,0.00608682,96095.0,96094.0,0.10464569]
[1740403599250,0.00608682,96095.0,96094.0,0.25974269]
[1740403599674,0.0008498,96096.0,96095.0,0.156095]
[1740403599886,0.0008498,96096.0,96095.0,0.25874069]
[1740403601450,0.0008498,96096.0,96095.0,0.25974069]
[1740403604616,0.0008498,96096.0,96095.0,0.33884069]
[1740403606157,0.0008498,96096.0,96095.0,0.38804069]
[1740403606793,0.0008498,96096.0,96095.0,0.38704069]
[1740403607002,0.0008498,96096.0,96095.0,0.39204069]
[1740403608909,0.0018498,96096.0,96095.0,0.39704069]
[1740403609637,0.0018498,96096.0,96095.0,0.41761413]
[1740403610156,0.0018498,96096.0,96095.0,0.73901413]
[1740403611154,0.0008498,96096.0,96095.0,0.73401413]
[1740403611363,0.0018498,96096.0,96095.0,0.73401413]
[1740403611573,0.0018498,96096.0,96095.0,0.74101413]
[1740403611995,0.0008498,96096.0,96095.0,0.73601413]
[1740403612408,0.0018498,96096.0,96095.0,0.74301413]
[1740403613487,0.0018498,96096.0,96095.0,0.7256977]
[1740403617963,0.01406058,96108.0,96107.0,0.156076]
[1740403618097,0.156055,96120.0,96110.0,0.156069]
[1740403618315,4.304e-05,96120.0,96111.0,0.10264569]
[1740403618534,4.304e-05,96120.0,96106.0,0.3214]
[1740403618535,0.156076,96107.0,96106.0,0.3214]
[1740403618757,0.16194262,96107.0,96106.0,0.3214]
[1740403620947,0.16194262,96107.0,96106.0,0.3244]
[1740403621917,0.16194262,96107.0,96106.0,0.50004569]
[1740403621918,0.00586662,96107.0,96106.0,0.50004569]
[1740403622148,0.00586662,96107.0,96106.0,0.70312269]
[1740403622348,0.0008498,96112.0,96106.0,0.70312269]
[1740403622349,0.0008498,96112.0,96106.0,0.70412269]
[1740403622579,0.0008498,96112.0,96111.0,0.156069]
[1740403622775,0.0008498,96112.0,96111.0,0.10264569]
[1740403622949,0.0008498,96112.0,96111.0,0.25871469]
[1740403623163,0.01481704,96112.0,96111.0,0.25871469]
[1740403623367,0.0008498,96112.0,96111.0,0.25871469]
[1740403624136,0.0008498,96112.0,96111.0,0.26171469]
[1740403624725,0.0008498,96112.0,96111.0,0.33911469]
[1740403624963,0.0008498,96112.0,96111.0,0.34211469]
[1740403633890,0.15605,96123.0,96112.0,0.208089]
[1740403634055,0.15605,96123.0,96118.0,0.156057]
[1740403634257,0.00589432,96122.0,96119.0,0.10264569]
[1740403634839,0.156048,96125.0,96119.0,0.10264569]
[1740403635045,0.00588997,96121.0,96119.0,0.10264569]
[1740403635247,0.156049,96124.0,96119.0,0.10264569]
[1740403635445,0.00588561,96120.0,96119.0,0.10264569]
[1740403635652,0.0130622,96122.0,96119.0,0.10264569]
[1740403635853,0.00586886,96120.0,96119.0,0.10264569]
[1740403636052,0.002,96123.0,96119.0,0.10264569]
[1740403636258,0.00586886,96120.0,96119.0,0.10264569]
[1740403636461,0.01289961,96122.0,96119.0,0.10264569]
[1740403636680,0.00587305,96120.0,96119.0,0.10264569]
[1740403636857,0.002,96123.0,96119.0,0.10264569]
[1740403636858,0.156049,96124.0,96119.0,0.10264569]
[1740403637057,0.00587305,96120.0,96119.0,0.10264569]
[1740403637263,0.158049,96124.0,96119.0,0.10264569]
[1740403637606,0.00587305,96120.0,96119.0,0.10264569]
[1740403637759,0.158049,96124.0,96119.0,0.10264569]
[1740403637936,0.16909243,96124.0,96119.0,0.10264569]
[1740403638140,0.16909143,96124.0,96119.0,0.10264569]
[1740403638408,0.00589031,96123.0,96119.0,0.10264569]
[1740403639210,0.156049,96124.0,96119.0,0.10264569]
[1740403639422,0.00589449,96123.0,96119.0,0.10264569]
[1740403639618,0.16194449,96123.0,96119.0,0.10264569]
[1740403639778,0.00589449,96123.0,96119.0,0.10264569]
[1740403640863,0.01547223,96124.0,96119.0,0.10264569]
[1740403641073,0.00589432,96122.0,96119.0,0.10264569]
[1740403641254,0.00589868,96123.0,96119.0,0.10264569]
[1740403641428,0.00588997,96121.0,96119.0,0.10264569]
[1740403641628,0.002,96123.0,96119.0,0.10264569]
[1740403641952,0.00589432,96122.0,96119.0,0.10264569]
[1740403642534,0.156054,96120.0,96119.0,0.10264569]
[1740403642732,0.001,96121.0,96111.0,0.0774]
[1740403642939,0.00588561,96120.0,96112.0,0.10264569]
[1740403643257,0.156061,96117.0,96112.0,0.10264569]
[1740403643608,0.156059,96118.0,96112.0,0.10264569]
[1740403643787,0.00587175,96116.0,96112.0,0.10264569]
[1740403643992,0.00585517,96117.0,96112.0,0.10264569]
[1740403644231,0.00584646,96115.0,96112.0,0.10264569]
[1740403644438,0.001,96121.0,96112.0,0.10264569]
[1740403644439,0.00585081,96116.0,96112.0,0.10264569]
[1740403644652,0.20807,96122.0,96112.0,0.10264569]
[1740403644842,0.001,96122.0,96112.0,0.10264569]
[1740403645007,0.0058726,96121.0,96112.0,0.10264569]
[1740403645225,0.156054,96120.0,96112.0,0.10264569]
[1740403645577,0.16191988,96119.0,96112.0,0.10264569]
[1740403646007,0.16245698,96119.0,96112.0,0.10534509]
[1740403646193,0.16245698,96119.0,96112.0,0.10434509]
[1740403646340,0.16245698,96119.0,96112.0,0.10534509]
[1740403646760,0.00640098,96119.0,96112.0,0.10534509]
[1740403647161,0.00640098,96119.0,96113.0,0.156066]
[1740403647400,0.0005371,96119.0,96114.0,0.10264569]
[1740403647652,0.00585953,96118.0,96114.0,0.31073069]
[1740403647900,0.00639663,96118.0,96117.0,0.156059]
[1740403648148,0.0005371,96118.0,96117.0,0.25870469]
[1740403648379,0.00639663,96118.0,96117.0,0.25870469]
[1740403648578,0.0005371,96118.0,96117.0,0.25870469]
[1740403648780,0.00639663,96118.0,96117.0,0.25870469]
[1740403648987,0.0005371,96118.0,96117.0,0.25870469]
[1740403649154,0.00639663,96118.0,96117.0,0.25870469]
[1740403649357,0.0005371,96118.0,96117.0,0.25870469]
[1740403649624,0.00639663,96118.0,96117.0,0.25870469]
[1740403649826,0.0005371,96118.0,96117.0,0.25970469]
[1740403650712,0.00639663,96118.0,96117.0,0.25970469]
[1740403650921,0.0005371,96118.0,96117.0,0.25970469]
[1740403651132,0.00636669,96118.0,96117.0,0.25970469]
[1740403651362,0.0005371,96118.0,96117.0,0.25970469]
[1740403651605,0.00636669,96118.0,96117.0,0.25970469]
[1740403651812,0.0005371,96118.0,96117.0,0.25970469]
[1740403651996,0.00636669,96118.0,96117.0,0.25970469]
[1740403652220,0.0005371,96118.0,96117.0,0.25970469]
[1740403652422,0.00636669,96118.0,96117.0,0.25970469]
[1740403653402,0.0005371,96118.0,96117.0,0.25970469]
[1740403653600,0.00637054,96118.0,96117.0,0.25970469]
[1740403654036,0.00637054,96118.0,96117.0,0.10364569]
[1740403659115,0.00637054,96118.0,96117.0,0.10534509]
[1740403665097,0.16242854,96118.0,96117.0,0.10534509]
[1740403666200,0.00637054,96118.0,96117.0,0.10534509]
[1740403667602,0.16242854,96118.0,96117.0,0.10534509]
[1740403667833,0.00637054,96118.0,96117.0,0.10534509]
[1740403668733,0.16242854,96118.0,96117.0,0.10534509]
[1740403669189,0.208074,96120.0,96117.0,0.10534509]
[1740403669426,0.00457272,96118.0,96117.0,0.10534509]
[1740403669650,0.156056,96119.0,96117.0,0.10534509]
[1740403669869,0.156055,96120.0,96117.0,0.10534509]
[1740403670060,0.208062,96125.0,96117.0,0.10534509]
[1740403670301,0.16061214,96119.0,96117.0,0.10534509]
[1740403670528,0.156057,96119.0,96117.0,0.10534509]
[1740403670751,0.00455597,96118.0,96117.0,0.10534509]
[1740403670964,0.00455597,96118.0,96117.0,0.10434509]
[1740403672024,0.01294278,96125.0,96117.0,0.10434509]
[1740403672278,0.156055,96120.0,96117.0,0.10434509]
[1740403672548,0.156055,96120.0,96117.0,0.10534509]
[1740403672802,0.16062052,96119.0,96117.0,0.10534509]
[1740403673065,0.00456452,96119.0,96117.0,0.10534509]
[1740403673327,0.16062052,96119.0,96117.0,0.10534509]
[1740403674274,0.00456452,96119.0,96117.0,0.10534509]
[1740403674738,0.156056,96119.0,96117.0,0.10434509]
[1740403674890,0.00456016,96118.0,96117.0,0.10434509]
[1740403676277,0.16061816,96118.0,96117.0,0.10434509]
[1740403676607,0.00456016,96118.0,96117.0,0.10434509]
[1740403677531,0.00456016,96118.0,96117.0,0.10534509]
[1740403679236,0.16061816,96118.0,96117.0,0.10534509]
[1740403679411,0.00456016,96118.0,96117.0,0.10534509]
[1740403680422,0.156055,96120.0,96117.0,0.10534509]
[1740403680601,0.00456452,96119.0,96117.0,0.10534509]
[1740403680974,0.16062152,96119.0,96117.0,0.10534509]
[1740403681437,0.16062052,96119.0,96117.0,0.10434509]
[1740403681677,0.00456452,96119.0,96117.0,0.10434509]
[1740403682353,0.156056,96120.0,96117.0,0.10434509]
[1740403682594,0.00455998,96118.0,96117.0,0.10434509]
[1740403682807,0.01319481,96125.0,96117.0,0.17974509]
[1740403683014,0.00456417,96118.0,96117.0,0.17974509]
[1740403683206,0.156054,96121.0,96117.0,0.17974509]
[1740403683433,0.156051,96123.0,96117.0,0.17974509]
[1740403683655,0.156053,96121.0,96117.0,0.17974509]
[1740403684083,0.208067,96123.0,96117.0,0.17974509]
[1740403684296,0.156055,96120.0,96117.0,0.17974509]
[1740403684507,0.156052,96122.0,96117.0,0.18074509]
[1740403684726,0.01342702,96125.0,96117.0,0.17974509]
[1740403685171,0.001,96121.0,96117.0,0.17974509]
[1740403685439,0.157054,96121.0,96117.0,0.17974509]
[1740403685866,0.001,96121.0,96117.0,0.17974509]
[1740403686072,0.156056,96119.0,96117.0,0.17974509]
[1740403686283,0.001,96121.0,96117.0,0.17974509]
[1740403686548,0.156056,96119.0,96117.0,0.17974509]
[1740403686976,0.208073,96121.0,96117.0,0.17974509]
[1740403687182,0.156057,96119.0,96117.0,0.17974509]
[1740403687782,0.01289263,96125.0,96117.0,0.17974509]
[1740403687988,0.156054,96121.0,96117.0,0.17974509]
[1740403688415,0.156055,96120.0,96117.0,0.17974509]
[1740403690082,0.22329631,96125.0,96117.0,0.17974509]
[1740403690356,0.22329631,96125.0,96118.0,0.10264569]
[1740403690357,0.01523431,96125.0,96118.0,0.10264569]
[1740403690615,0.01323431,96125.0,96124.0,0.239048]
[1740403690852,0.01323431,96125.0,96124.0,0.34169369]
[1740403691093,0.01733625,96126.0,96125.0,0.156046]
[1740403691305,0.01733625,96126.0,96125.0,0.33499169]
[1740403691518,0.0008497,96126.0,96125.0,0.33499169]
[1740403691703,0.0008497,96126.0,96125.0,0.33299169]
[1740403692167,0.01713179,96126.0,96125.0,0.33899169]
[1740403693373,0.01713179,96126.0,96125.0,0.34599169]
[1740403693588,0.01713179,96126.0,96125.0,0.39229169]
[1740403698650,0.0008497,96126.0,96125.0,0.39229169]
[1740403699733,0.0008497,96126.0,96125.0,0.38529169]
[1740403699977,0.0008497,96126.0,96125.0,0.37929169]
[1740403700209,0.0008497,96126.0,96125.0,0.38629169]
[1740403700480,0.0008497,96126.0,96125.0,0.39229169]
[1740403700708,0.0008497,96126.0,96125.0,0.37929169]
[1740403700931,0.0008497,96126.0,96125.0,0.39329169]
[1740403701150,0.0008497,96126.0,96125.0,0.38629169]
[1740403701322,0.0008497,96126.0,96125.0,0.37929169]
[1740403701530,0.0008497,96126.0,96125.0,0.38629169]
[1740403701877,0.0008497,96126.0,96125.0,0.39329169]
[1740403706673,0.0008497,96126.0,96125.0,0.39499109]
[1740403710548,0.15,96169.0,96152.0,0.0474]
[1740403710763,0.15,96165.0,96158.0,0.155992]
[1740403711002,0.155984,96164.0,96159.0,0.10264569]
[1740403711232,0.155986,96163.0,96159.0,0.10264569]
[1740403711436,0.0212249,96164.0,96159.0,0.10264569]
[1740403711666,0.00471753,96162.0,96159.0,0.10264569]
[1740403711933,0.00471318,96161.0,96159.0,0.10264569]
[1740403713360,0.155987,96162.0,96159.0,0.10364569]
[1740403713614,0.00470883,96160.0,96159.0,0.10364569]
[1740403713829,0.155987,96162.0,96159.0,0.10364569]
[1740403714064,0.00470883,96160.0,96159.0,0.10364569]
[1740403714280,0.155987,96162.0,96159.0,0.10364569]
[1740403714500,0.155985,96163.0,96159.0,0.10264569]
[1740403715130,0.00471753,96162.0,96159.0,0.10264569]
[1740403715907,0.00471753,96162.0,96159.0,0.10364569]
[1740403716133,0.17205706,96164.0,96159.0,0.10364569]
[1740403716364,0.00471318,96161.0,96159.0,0.10364569]
[1740403716599,0.17205706,96164.0,96159.0,0.10364569]
[1740403716810,0.00470883,96160.0,96159.0,0.10364569]
[1740403716970,0.155985,96163.0,96159.0,0.10264569]
[1740403717225,0.00470883,96160.0,96159.0,0.10264569]
[1740403717457,0.155985,96163.0,96159.0,0.10264569]
[1740403717655,0.00470883,96160.0,96159.0,0.10264569]
[1740403717811,0.22405306,96164.0,96159.0,0.10264569]
[1740403718019,0.00470883,96160.0,96159.0,0.10264569]
[1740403718443,0.155985,96163.0,96159.0,0.10264569]
[1740403718666,0.00471753,96162.0,96159.0,0.10264569]
[1740403719078,0.00471753,96162.0,96159.0,0.10364569]
[1740403719079,0.16070453,96162.0,96159.0,0.10364569]
[1740403719355,0.16070453,96162.0,96159.0,0.10264569]
[1740403719796,0.00471753,96162.0,96159.0,0.10264569]
[1740403720228,0.155986,96163.0,96159.0,0.10364569]
[1740403720447,0.00469643,96161.0,96159.0,0.10364569]
[1740403720649,0.155986,96163.0,96159.0,0.10364569]
[1740403720815,0.00469208,96160.0,96159.0,0.10364569]
[1740403721390,0.155985,96163.0,96159.0,0.10364569]
[1740403721582,0.00469375,96160.0,96159.0,0.10364569]
[1740403721731,0.155985,96163.0,96159.0,0.10264569]
[1740403721932,0.00469375,96160.0,96159.0,0.10264569]
[1740403722152,0.155985,96163.0,96159.0,0.10264569]
[1740403722349,0.00469375,96160.0,96159.0,0.10264569]
[1740403722553,0.155985,96163.0,96159.0,0.10264569]
[1740403722732,0.00469375,96160.0,96159.0,0.10364569]
[1740403722937,0.155985,96163.0,96159.0,0.10364569]
[1740403723144,0.00469375,96160.0,96159.0,0.10264569]
[1740403723458,0.155986,96162.0,96159.0,0.10264569]
[1740403723689,0.155985,96163.0,96159.0,0.10264569]
[1740403723898,0.00470246,96162.0,96159.0,0.10264569]
[1740403725009,0.00470246,96162.0,96159.0,0.10364569]
[1740403725379,0.00470246,96162.0,96159.0,0.10264569]
[1740403725575,0.00470246,96162.0,96159.0,0.10364569]
[1740403725803,0.15599,96160.0,96159.0,0.001]
[1740403726008,0.30599,96160.0,96159.0,0.001]
[1740403726381,0.31062357,96160.0,96159.0,0.001]
[1740403726961,0.15463357,96160.0,96132.0,0.1269]
[1740403727196,0.00463357,96160.0,96145.0,0.156014]
[1740403727369,0.00463357,96160.0,96134.0,0.0832]
[1740403727370,0.01617285,96164.0,96147.0,0.0832]
[1740403727544,0.155994,96158.0,96148.0,0.10264569]
[1740403727748,0.15,96168.0,96148.0,0.10264569]
[1740403727952,0.207995,96156.0,96148.0,0.10264569]
[1740403728158,0.15,96166.0,96148.0,0.10264569]
[1740403728352,0.00503936,96155.0,96148.0,0.10264569]
[1740403728554,0.155992,96159.0,96148.0,0.10264569]
[1740403728985,0.00505347,96158.0,96148.0,0.10264569]
[1740403729416,0.00505347,96158.0,96148.0,0.10464569]
[1740403729740,0.16104647,96158.0,96148.0,0.10264569]
[1740403730622,0.00505347,96158.0,96148.0,0.10264569]
[1740403731059,0.155998,96155.0,96148.0,0.10434429]
[1740403731275,0.00503605,96154.0,96148.0,0.10434429]
[1740403731478,0.155992,96159.0,96148.0,0.10434429]
[1740403731746,0.00505347,96158.0,96148.0,0.10534429]
[1740403731978,0.00505347,96158.0,96148.0,0.10434429]
[1740403732177,0.00505347,96158.0,96148.0,0.10634429]
[1740403732582,0.00505347,96158.0,96148.0,0.10434429]
[1740403732783,0.00505347,96158.0,96148.0,0.10534429]
[1740403733192,0.155995,96157.0,96148.0,0.10534429]
[1740403733409,0.16104647,96158.0,96148.0,0.10634429]
[1740403733558,0.00504895,96156.0,96148.0,0.10634429]
[1740403733960,0.0050533,96157.0,96148.0,0.10534429]
[1740403734196,0.00504492,96155.0,96148.0,0.10534429]
[1740403734414,0.00504927,96156.0,96148.0,0.10534429]
[1740403734621,0.155992,96159.0,96148.0,0.10534429]
[1740403734875,0.0050449,96155.0,96148.0,0.10534429]
[1740403735082,0.155992,96159.0,96148.0,0.10434429]
[1740403735288,0.00504055,96154.0,96148.0,0.10534429]
[1740403735495,0.155992,96159.0,96148.0,0.10434429]
[1740403735680,0.00503605,96153.0,96148.0,0.10434429]
[1740403735814,0.155993,96158.0,96148.0,0.10434429]
[1740403736024,0.00503169,96152.0,96148.0,0.10434429]
[1740403736266,0.155991,96159.0,96148.0,0.10434429]
[1740403736835,0.00505781,96158.0,96148.0,0.10634429]
[1740403737250,0.155994,96158.0,96148.0,0.10634429]
[1740403737475,0.16104846,96157.0,96148.0,0.10634429]
[1740403737682,0.155996,96156.0,96148.0,0.10634429]
[1740403737926,0.00504462,96155.0,96148.0,0.10634429]
[1740403738347,0.155994,96158.0,96148.0,0.10434429]
[1740403738535,0.00504026,96154.0,96148.0,0.10434429]
[1740403738732,0.155996,96156.0,96148.0,0.10434429]
[1740403738943,0.00503591,96153.0,96148.0,0.10434429]
[1740403739142,0.155995,96157.0,96148.0,0.10434429]
[1740403739348,0.00501481,96152.0,96148.0,0.10434429]
[1740403739555,0.155995,96157.0,96148.0,0.10534429]
[1740403739753,0.00501045,96151.0,96148.0,0.10434429]
[1740403739983,0.155999,96154.0,96148.0,0.10634429]
[1740403740185,0.15,96178.0,96148.0,0.10634429]
[1740403740394,0.00502335,96153.0,96148.0,0.10434429]
[1740403740610,0.15,96178.0,96148.0,0.10934429]
[1740403740611,0.156007,96149.0,96148.0,0.10934429]
[1740403740869,0.16102303,96152.0,96148.0,0.10634429]
[1740403741093,0.00500597,96149.0,96148.0,0.10634429]
[1740403741310,0.155996,96156.0,96148.0,0.10634429]
[1740403741538,0.207994,96157.0,96148.0,0.10634429]
[1740403741771,0.155996,96156.0,96148.0,0.10634429]
[1740403741993,0.00504045,96156.0,96148.0,0.10634429]
[1740403742216,0.00504045,96156.0,96148.0,0.10834429]
[1740403742516,0.155998,96155.0,96148.0,0.10634429]
[1740403742751,0.01626579,96164.0,96148.0,0.10434429]
[1740403742976,0.156001,96154.0,96148.0,0.10534429]
[1740403743208,0.207998,96155.0,96148.0,0.10534429]
[1740403743403,0.16103365,96153.0,96148.0,0.10634429]
[1740403743637,0.156003,96152.0,96148.0,0.10434429]
[1740403743833,0.16103029,96152.0,96148.0,0.10434429]
[1740403744055,0.00502729,96152.0,96148.0,0.10434429]
[1740403744279,0.16103029,96152.0,96148.0,0.10434429]
[1740403744504,0.156003,96152.0,96148.0,0.10434429]
[1740403744724,0.00502299,96151.0,96148.0,0.10434429]
[1740403745836,0.156001,96153.0,96148.0,0.10634429]
[1740403746103,0.156001,96153.0,96148.0,0.10434429]
[1740403746354,0.00503072,96152.0,96148.0,0.10934429]
[1740403746827,0.00503072,96152.0,96148.0,0.10434429]
[1740403747072,0.00503072,96152.0,96148.0,0.10934429]
[1740403747321,0.01680804,96164.0,96148.0,0.10734429]
[1740403747587,0.01680804,96164.0,96148.0,0.10434429]
[1740403747825,0.156,96154.0,96148.0,0.10434429]
[1740403748276,0.00503505,96153.0,96148.0,0.10434429]